[Event "Mistrovství Čech mládeže 2023 - HD14"]
[Site "Harrachov, Czech Republic"]
[Date "2023.10.23"]
[Round "3.4"]
[White "Krautschneider, Daniel Jan"]
[Black "Stefaniv, Vladislav"]
[Result "1/2-1/2"]
[TimeControl "90m + 30s"]
[WhiteElo "1669"]
[BlackElo "1566"]

1. e4 {[%clk 01:30:53]} {[%emt 00:00:06]} e5 {[%clk 01:30:31]} {[%emt
00:00:29]} 2. Nc3 {[%clk 01:31:17]} {[%emt 00:00:06]} Nc6 {[%clk 01:30:04]}
{[%emt 00:00:57]} 3. f4 {[%clk 01:31:38]} {[%emt 00:00:09]} exf4 {[%clk
01:28:46]} {[%emt 00:01:48]} 4. Nf3 {[%clk 01:32:01]} {[%emt 00:00:06]} g5
{[%clk 01:27:35]} {[%emt 00:01:41]} 5. h4 {[%clk 01:32:18]} {[%emt 00:00:13]}
g4 {[%clk 01:26:26]} {[%emt 00:01:40]} 6. Ng5 {[%clk 01:32:40]} {[%emt
00:00:08]} h6 {[%clk 01:25:48]} {[%emt 00:01:08]} 7. Nxf7 {[%clk 01:32:01]}
{[%emt 00:01:09]} Kxf7 {[%clk 01:26:06]} {[%emt 00:00:12]} 8. Qxg4 {[%clk
01:32:15]} {[%emt 00:00:16]} Ne5 {[%clk 01:02:42]} {[%emt 00:23:53]} 9. Qh5+
{[%clk 01:24:24]} {[%emt 00:08:21]} Ng6 {[%clk 01:02:16]} {[%emt 00:00:56]} 10.
e5 {[%clk 01:11:39]} {[%emt 00:13:16]} d5 {[%clk 00:54:18]} {[%emt 00:08:28]}
11. Bd3 {[%clk 01:07:28]} {[%emt 00:04:40]} N8e7 {[%clk 00:54:21]} {[%emt
00:00:28]} 12. b3 {[%clk 01:05:46]} {[%emt 00:02:13]} Bg7 {[%clk 00:49:07]}
{[%emt 00:05:43]} 13. Ba3 {[%clk 01:01:11]} {[%emt 00:05:05]} Qd7 {[%clk
00:29:13]} {[%emt 00:20:23]} 14. Bxe7 {[%clk 00:58:39]} {[%emt 00:03:03]} Qg4
{[%clk 00:29:07]} {[%emt 00:00:36]} 15. Qxg6+ {[%clk 00:45:35]} {[%emt
00:13:34]} Qxg6 {[%clk 00:29:23]} {[%emt 00:00:14]} 16. Bxg6+ {[%clk 00:45:55]}
{[%emt 00:00:11]} Kxg6 {[%clk 00:26:04]} {[%emt 00:03:49]} 17. Nxd5 {[%clk
00:32:44]} {[%emt 00:13:41]} Bxe5 {[%clk 00:15:24]} {[%emt 00:11:10]} 18. O-O-O
{[%clk 00:32:58]} {[%emt 00:00:16]} Be6 {[%clk 00:12:39]} {[%emt 00:03:14]} 19.
Nb4 {[%clk 00:30:19]} {[%emt 00:03:10]} Kf7 {[%clk 00:06:22]} {[%emt 00:06:46]}
20. Bc5 {[%clk 00:25:52]} {[%emt 00:04:56]} b6 {[%clk 00:06:16]} {[%emt
00:00:36]} 21. Nc6 {[%clk 00:22:10]} {[%emt 00:04:12]} Bf6 {[%clk 00:05:46]}
{[%emt 00:01:00]} 22. Bd4 {[%clk 00:22:20]} {[%emt 00:00:20]} Bd5 {[%clk
00:05:35]} {[%emt 00:00:41]} 23. Ne5+ {[%clk 00:20:34]} {[%emt 00:02:16]} Bxe5
{[%clk 00:01:49]} {[%emt 00:04:16]} 24. Bxe5 {[%clk 00:18:59]} {[%emt
00:02:05]} Bxg2 {[%clk 00:01:03]} {[%emt 00:01:16]} 25. Bxh8 {[%clk 00:18:24]}
{[%emt 00:01:05]} Bxh1 {[%clk 00:01:25]} {[%emt 00:00:08]} 26. Rxh1 {[%clk
00:18:42]} {[%emt 00:00:12]} Rxh8 {[%clk 00:01:51]} {[%emt 00:00:05]} 27. Rf1
{[%clk 00:18:51]} {[%emt 00:00:21]} Rg8 {[%clk 00:01:11]} {[%emt 00:01:10]} 28.
Rxf4+ {[%clk 00:19:11]} {[%emt 00:00:10]} Ke6 {[%clk 00:01:28]} {[%emt
00:00:12]} 29. d4 {[%clk 00:18:07]} {[%emt 00:01:36]} Rg1+ {[%clk 00:01:22]}
{[%emt 00:00:36]} 30. Kd2 {[%clk 00:18:21]} {[%emt 00:00:16]} Rg2+ {[%clk
00:00:47]} {[%emt 00:01:05]} 31. Kd3 {[%clk 00:17:05]} {[%emt 00:01:46]} Rg3+
{[%clk 00:00:46]} {[%emt 00:00:32]} 32. Kc4 {[%clk 00:17:12]} {[%emt 00:00:22]}
Rg2 {[%clk 00:00:46]} {[%emt 00:00:29]} 33. Kc3 {[%clk 00:17:23]} {[%emt
00:00:19]} Rg3+ {[%clk 00:00:54]} {[%emt 00:00:22]} 34. Kb2 {[%clk 00:17:49]}
{[%emt 00:00:04]} Rg2 {[%clk 00:00:56]} {[%emt 00:00:28]} 35. a3 {[%clk
00:17:36]} {[%emt 00:00:43]} Rh2 {[%clk 00:01:13]} {[%emt 00:00:12]} 36. Kc3
{[%clk 00:17:53]} {[%emt 00:00:14]} c6 {[%clk 00:00:58]} {[%emt 00:00:45]} 37.
a4 {[%clk 00:13:50]} {[%emt 00:04:33]} a5 {[%clk 00:01:19]} {[%emt 00:00:09]}
38. Kd3 {[%clk 00:13:18]} {[%emt 00:01:01]} Rh3+ {[%clk 00:00:44]} {[%emt
00:01:05]} 39. Kc4 {[%clk 00:13:27]} {[%emt 00:00:21]} Rh2 {[%clk 00:00:48]}
{[%emt 00:00:27]} 40. c3 {[%clk 00:13:48]} {[%emt 00:00:09]} Rh3 {[%clk
00:01:07]} {[%emt 00:00:12]} 41. b4 {[%clk 00:13:38]} {[%emt 00:00:41]} axb4
{[%clk 00:01:02]} {[%emt 00:00:35]} 42. Kxb4 {[%clk 00:11:59]} {[%emt
00:02:08]} Rh1 {[%clk 00:00:41]} {[%emt 00:00:51]} 43. Kc4 {[%clk 00:10:19]}
{[%emt 00:02:10]} Ra1 {[%clk 00:00:44]} {[%emt 00:00:27]} 44. Re4+ {[%clk
00:07:33]} {[%emt 00:03:17]} Kf6 {[%clk 00:00:39]} {[%emt 00:00:35]} 45. Rf4+
{[%clk 00:06:49]} {[%emt 00:01:13]} Ke6 {[%clk 00:00:59]} {[%emt 00:00:10]} 46.
Kb3 {[%clk 00:06:50]} {[%emt 00:00:29]} Rb1+ {[%clk 00:01:07]} {[%emt
00:00:21]} 47. Ka2 {[%clk 00:07:13]} {[%emt 00:00:07]} Rh1 {[%clk 00:01:21]}
{[%emt 00:00:17]} 48. Kb2 {[%clk 00:06:41]} {[%emt 00:01:02]} Rh2+ {[%clk
00:00:51]} {[%emt 00:01:00]} 49. Kb3 {[%clk 00:05:54]} {[%emt 00:01:17]} Rh1
{[%clk 00:01:04]} {[%emt 00:00:17]} 50. Kb4 {[%clk 00:05:52]} {[%emt 00:00:32]}
Rb1+ {[%clk 00:01:20]} {[%emt 00:00:13]} 51. Ka3 {[%clk 00:06:11]} {[%emt
00:00:12]} Ra1+ {[%clk 00:01:25]} {[%emt 00:00:24]} 52. Kb3 {[%clk 00:06:37]}
{[%emt 00:00:04]} Rb1+ {[%clk 00:01:46]} {[%emt 00:00:09]} 53. Ka2 {[%clk
00:07:04]} {[%emt 00:00:03]} Rh1 {[%clk 00:02:08]} {[%emt 00:00:08]} 54. c4
{[%clk 00:07:08]} {[%emt 00:00:27]} Rc1 {[%clk 00:01:51]} {[%emt 00:00:45]} 55.
d5+ {[%clk 00:07:02]} {[%emt 00:00:37]} cxd5 {[%clk 00:01:36]} {[%emt
00:00:45]} 56. cxd5+ {[%clk 00:07:27]} {[%emt 00:00:06]} Kxd5 {[%clk 00:02:00]}
{[%emt 00:00:06]} 57. Rf6 {[%clk 00:07:51]} {[%emt 00:00:05]} Rc4 {[%clk
00:01:34]} {[%emt 00:00:55]} 58. Rxh6 {[%clk 00:08:14]} {[%emt 00:00:08]} Rxa4+
{[%clk 00:01:37]} {[%emt 00:00:27]} 59. Kb3 {[%clk 00:08:32]} {[%emt 00:00:12]}
Ra1 {[%clk 00:01:15]} {[%emt 00:00:52]} 60. Rh8 {[%clk 00:08:40]} {[%emt
00:00:21]} Rh1 {[%clk 00:01:07]} {[%emt 00:00:38]} 61. h5 {[%clk 00:08:27]}
{[%emt 00:00:44]} Ke6 {[%clk 00:00:49]} {[%emt 00:00:47]} 62. h6 {[%clk
00:08:35]} {[%emt 00:00:22]} Kf7 {[%clk 00:00:58]} {[%emt 00:00:22]} 63. Rb8
{[%clk 00:08:45]} 1/2-1/2

[Event "Mistrovství Čech mládeže 2023 - HD14"]
[Site "Harrachov, Czech Republic"]
[Date "2023.10.23"]
[Round "3.5"]
[White "Švadlenka, Michal"]
[Black "Tejnor, Martin"]
[Result "1-0"]
[TimeControl "90m + 30s"]
[WhiteElo "1651"]
[BlackElo "1418"]

1. e4 {[%clk 01:30:58]} {[%emt 00:00:02]} c5 {[%clk 01:30:58]} {[%emt
00:00:02]} 2. Nf3 {[%clk 01:31:11]} {[%emt 00:00:17]} d6 {[%clk 01:31:11]}
{[%emt 00:00:17]} 3. d4 {[%clk 01:31:37]} {[%emt 00:00:05]} cxd4 {[%clk
01:31:33]} {[%emt 00:00:07]} 4. Nxd4 {[%clk 01:32:03]} {[%emt 00:00:04]} Nf6
{[%clk 01:31:58]} {[%emt 00:00:05]} 5. Nc3 {[%clk 01:32:25]} {[%emt 00:00:09]}
Nc6 {[%clk 01:32:17]} {[%emt 00:00:10]} 6. Bg5 {[%clk 01:30:48]} {[%emt
00:02:07]} e6 {[%clk 01:31:24]} {[%emt 00:01:23]} 7. Qd2 {[%clk 01:30:17]}
{[%emt 00:01:02]} Be7 {[%clk 01:29:03]} {[%emt 00:02:51]} 8. O-O-O {[%clk
01:28:40]} {[%emt 00:02:07]} a6 {[%clk 01:27:34]} {[%emt 00:01:59]} 9. f4
{[%clk 01:27:09]} {[%emt 00:02:01]} Qc7 {[%clk 01:26:45]} {[%emt 00:01:20]} 10.
f5 {[%clk 01:22:26]} {[%emt 00:05:13]} Nxd4 {[%clk 01:21:17]} {[%emt 00:05:57]}
11. Qxd4 {[%clk 01:21:10]} {[%emt 00:01:46]} exf5 {[%clk 01:21:26]} {[%emt
00:00:21]} 12. Bxf6 {[%clk 01:03:16]} {[%emt 00:18:24]} Bxf6 {[%clk 01:21:44]}
{[%emt 00:00:12]} 13. Nd5 {[%clk 01:02:22]} {[%emt 00:01:24]} Qd8 {[%clk
01:21:03]} {[%emt 00:01:11]} 14. Nxf6+ {[%clk 00:59:21]} {[%emt 00:03:31]} Qxf6
{[%clk 01:21:11]} {[%emt 00:00:21]} 15. Qxf6 {[%clk 00:58:11]} {[%emt
00:01:40]} gxf6 {[%clk 01:21:34]} {[%emt 00:00:07]} 16. exf5 {[%clk 00:57:23]}
{[%emt 00:01:18]} Bxf5 {[%clk 01:19:18]} {[%emt 00:02:46]} 17. Rxd6 {[%clk
00:57:31]} {[%emt 00:00:21]} Ke7 {[%clk 01:19:44]} {[%emt 00:00:04]} 18. Rd2
{[%clk 00:48:57]} {[%emt 00:09:05]} Rac8 {[%clk 01:19:56]} {[%emt 00:00:18]} 19.
Bd3 {[%clk 00:39:54]} {[%emt 00:09:33]} Be6 {[%clk 01:18:17]} {[%emt 00:02:09]}
20. a3 {[%clk 00:39:08]} {[%emt 00:01:16]} h6 {[%clk 01:16:48]} {[%emt
00:01:59]} 21. Rf1 {[%clk 00:34:17]} {[%emt 00:05:21]} h5 {[%clk 01:11:17]}
{[%emt 00:06:01]} 22. Re2 {[%clk 00:28:56]} {[%emt 00:05:52]} Rc5 {[%clk
01:07:58]} {[%emt 00:03:48]} 23. Rf4 {[%clk 00:27:16]} {[%emt 00:02:10]} Re5
{[%clk 01:05:47]} {[%emt 00:02:42]} 24. Rfe4 {[%clk 00:26:16]} {[%emt
00:01:30]} Rxe4 {[%clk 00:56:05]} {[%emt 00:10:11]} 25. Bxe4 {[%clk 00:25:51]}
{[%emt 00:00:55]} b6 {[%clk 00:55:03]} {[%emt 00:01:33]} 26. Re3 {[%clk
00:24:09]} {[%emt 00:02:12]} Rc8 {[%clk 00:53:09]} {[%emt 00:02:24]} 27. Bb7
{[%clk 00:15:42]} {[%emt 00:08:57]} Rg8 {[%clk 00:53:24]} {[%emt 00:00:14]} 28.
Rc3 {[%clk 00:15:28]} {[%emt 00:00:45]} Kd7 {[%clk 00:50:38]} {[%emt 00:03:16]}
29. g3 {[%clk 00:10:48]} {[%emt 00:05:10]} a5 {[%clk 00:49:31]} {[%emt
00:01:37]} 30. Rf3 {[%clk 00:10:42]} {[%emt 00:00:36]} Ke7 {[%clk 00:49:26]}
{[%emt 00:00:35]} 31. Rf4 {[%clk 00:10:38]} {[%emt 00:00:34]} Rg5 {[%clk
00:48:13]} {[%emt 00:01:43]} 32. Kd2 {[%clk 00:10:19]} {[%emt 00:00:49]} Rc5
{[%clk 00:46:29]} {[%emt 00:02:14]} 33. Bf3 {[%clk 00:10:07]} {[%emt 00:00:42]}
Rg5 {[%clk 00:45:57]} {[%emt 00:01:02]} 34. c4 {[%clk 00:08:04]} {[%emt
00:02:34]} Bg4 {[%clk 00:35:47]} {[%emt 00:10:40]} 35. Bd5 {[%clk 00:05:13]}
{[%emt 00:03:21]} Be6 {[%clk 00:35:33]} {[%emt 00:00:44]} 36. Bc6 {[%clk
00:03:58]} {[%emt 00:01:45]} Rc5 {[%clk 00:35:47]} {[%emt 00:00:16]} 37. Bb5
{[%clk 00:04:27]} {[%emt 00:00:02]} Re5 {[%clk 00:34:41]} {[%emt 00:01:36]} 38.
b4 {[%clk 00:03:41]} {[%emt 00:01:17]} Bg4 {[%clk 00:32:39]} {[%emt 00:02:31]}
39. Rf2 {[%clk 00:03:24]} {[%emt 00:00:47]} Re4 {[%clk 00:31:28]} {[%emt
00:01:41]} 40. Kd3 {[%clk 00:03:04]} {[%emt 00:00:51]} Re1 {[%clk 00:30:38]}
{[%emt 00:01:20]} 41. bxa5 {[%clk 00:02:35]} {[%emt 00:00:59]} bxa5 {[%clk
00:30:56]} {[%emt 00:00:12]} 42. Kd4 {[%clk 00:02:34]} {[%emt 00:00:31]} Rd1+
{[%clk 00:30:11]} {[%emt 00:01:14]} 43. Kc5 {[%clk 00:03:03]} {[%emt 00:00:02]}
Rd6 {[%clk 00:30:30]} {[%emt 00:00:11]} 44. Rf4 {[%clk 00:02:41]} {[%emt
00:00:52]} Rd3 {[%clk 00:27:43]} {[%emt 00:03:16]} 45. Re4+ {[%clk 00:01:19]}
{[%emt 00:01:53]} Be6 {[%clk 00:27:45]} {[%emt 00:00:27]} 46. a4 {[%clk
00:01:31]} {[%emt 00:00:19]} Rd8 {[%clk 00:27:11]} {[%emt 00:01:03]} 47. Kb6
{[%clk 00:01:40]} {[%emt 00:00:22]} Ra8 {[%clk 00:26:58]} {[%emt 00:00:43]} 48.
Rd4 {[%clk 00:01:47]} {[%emt 00:00:23]} f5 {[%clk 00:25:29]} {[%emt 00:01:58]}
49. c5 {[%clk 00:02:08]} {[%emt 00:00:10]} Rc8 {[%clk 00:25:40]} {[%emt
00:00:18]} 50. c6 {[%clk 00:02:28]} {[%emt 00:00:11]} Ra8 {[%clk 00:25:57]}
{[%emt 00:00:13]} 51. Rd3 {[%clk 00:01:04]} {[%emt 00:01:54]} f6 {[%clk
00:26:04]} {[%emt 00:00:23]} 52. h4 {[%clk 00:01:03]} {[%emt 00:00:31]} f4
{[%clk 00:25:51]} {[%emt 00:00:42]} 53. gxf4 {[%clk 00:01:31]} {[%emt
00:00:03]} f5 {[%clk 00:26:19]} {[%emt 00:00:03]} 54. Rd2 {[%clk 00:00:50]}
{[%emt 00:01:11]} Ke8 {[%clk 00:24:58]} {[%emt 00:01:50]} 55. Re2 {[%clk
00:00:51]} {[%emt 00:00:29]} Kf7 {[%clk 00:25:12]} {[%emt 00:00:16]} 56. Ba6
{[%clk 00:00:49]} {[%emt 00:00:32]} Kf6 {[%clk 00:24:57]} {[%emt 00:00:45]} 57.
Bb7 {[%clk 00:01:06]} {[%emt 00:00:14]} Rb8 {[%clk 00:24:36]} {[%emt 00:00:51]}
58. Kxa5 {[%clk 00:01:24]} {[%emt 00:00:12]} Ke7 {[%clk 00:23:11]} {[%emt
00:01:54]} 59. Kb6 {[%clk 00:01:42]} {[%emt 00:00:12]} 1-0

[Event "Mistrovství Čech mládeže 2023 - HD14"]
[Site "Harrachov, Czech Republic"]
[Date "2023.10.23"]
[Round "3.6"]
[White "Malý, Jiří"]
[Black "Topenčík, Bruno"]
[Result "0-1"]
[TimeControl "90m + 30s"]
[WhiteElo "1490"]
[BlackElo "1832"]

1. e4 {[%clk 01:30:52]} {[%emt 00:00:08]} e6 {[%clk 01:30:54]} {[%emt
00:00:06]} 2. d4 {[%clk 01:31:09]} {[%emt 00:00:13]} d5 {[%clk 01:31:19]}
{[%emt 00:00:05]} 3. exd5 {[%clk 01:31:25]} {[%emt 00:00:15]} exd5 {[%clk
01:31:30]} {[%emt 00:00:19]} 4. Nf3 {[%clk 01:31:41]} {[%emt 00:00:13]} Bd6
{[%clk 01:31:42]} {[%emt 00:00:18]} 5. Bd3 {[%clk 01:31:31]} {[%emt 00:00:41]}
Nc6 {[%clk 01:31:54]} {[%emt 00:00:18]} 6. c3 {[%clk 01:30:20]} {[%emt
00:01:41]} Nge7 {[%clk 01:32:02]} {[%emt 00:00:21]} 7. Bg5 {[%clk 01:22:59]}
{[%emt 00:07:51]} Bg4 {[%clk 01:29:56]} {[%emt 00:02:36]} 8. Nbd2 {[%clk
01:21:48]} {[%emt 00:01:42]} Qd7 {[%clk 01:27:26]} {[%emt 00:02:59]} 9. O-O
{[%clk 01:16:48]} {[%emt 00:05:29]} O-O-O {[%clk 01:24:40]} {[%emt 00:03:16]}
10. Bxe7 {[%clk 01:11:40]} {[%emt 00:05:39]} Nxe7 {[%clk 01:21:56]} {[%emt
00:03:13]} 11. a4 {[%clk 01:07:22]} {[%emt 00:04:48]} Ng6 {[%clk 01:18:14]}
{[%emt 00:04:12]} 12. b4 {[%clk 00:49:22]} {[%emt 00:18:30]} Nf4 {[%clk
01:16:04]} {[%emt 00:02:39]} 13. Bb1 {[%clk 00:47:45]} {[%emt 00:02:08]} Rde8
{[%clk 01:14:02]} {[%emt 00:02:32]} 14. Qb3 {[%clk 00:45:39]} {[%emt 00:02:37]}
Bxf3 {[%clk 01:05:22]} {[%emt 00:09:09]} 15. Nxf3 {[%clk 00:33:59]} {[%emt
00:12:09]} Qg4 {[%clk 00:54:48]} {[%emt 00:11:04]} 16. Nh4 {[%clk 00:28:54]}
{[%emt 00:05:35]} Nh3+ {[%clk 00:52:55]} {[%emt 00:02:23]} 17. Kh1 {[%clk
00:28:25]} {[%emt 00:00:59]} Nxf2+ {[%clk 00:53:16]} {[%emt 00:00:09]} 18. Kg1
{[%clk 00:27:16]} {[%emt 00:01:39]} Bxh2+ {[%clk 00:53:26]} {[%emt 00:00:21]}
19. Kxh2 {[%clk 00:26:28]} {[%emt 00:01:17]} Qxh4+ {[%clk 00:53:42]} {[%emt
00:00:14]} 20. Kg1 {[%clk 00:26:38]} {[%emt 00:00:19]} Nh3+ {[%clk 00:53:06]}
{[%emt 00:01:07]} 21. gxh3 {[%clk 00:21:37]} {[%emt 00:05:31]} Qg3+ {[%clk
00:53:23]} {[%emt 00:00:13]} 22. Kh1 {[%clk 00:21:50]} {[%emt 00:00:17]} Re2
{[%clk 00:53:34]} {[%emt 00:00:19]} 23. Bf5+ {[%clk 00:21:02]} {[%emt
00:01:19]} Kb8 {[%clk 00:53:51]} {[%emt 00:00:13]} 0-1

[Event "Mistrovství Čech mládeže 2023 - HD14"]
[Site "Harrachov, Czech Republic"]
[Date "2023.10.23"]
[Round "3.7"]
[White "Mikulka, Martin Michael"]
[Black "Bělaška, Adam"]
[Result "0-1"]
[TimeControl "90m + 30s"]
[WhiteElo "1826"]
[BlackElo "1503"]

1. e4 {[%clk 01:30:57]} {[%emt 00:00:02]} c5 {[%clk 01:30:56]} {[%emt
00:00:05]} 2. Nf3 {[%clk 01:31:22]} {[%emt 00:00:05]} d6 {[%clk 01:31:14]}
{[%emt 00:00:11]} 3. d4 {[%clk 01:31:48]} {[%emt 00:00:04]} cxd4 {[%clk
01:31:40]} {[%emt 00:00:03]} 4. Nxd4 {[%clk 01:32:12]} {[%emt 00:00:06]} Nf6
{[%clk 01:32:07]} {[%emt 00:00:04]} 5. Nc3 {[%clk 01:32:37]} {[%emt 00:00:06]}
a6 {[%clk 01:32:15]} {[%emt 00:00:22]} 6. Be3 {[%clk 01:28:56]} {[%emt
00:04:10]} e6 {[%clk 01:32:09]} {[%emt 00:00:36]} 7. Be2 {[%clk 01:27:57]}
{[%emt 00:01:29]} Be7 {[%clk 01:32:05]} {[%emt 00:00:34]} 8. Qd2 {[%clk
01:27:46]} {[%emt 00:00:41]} Qc7 {[%clk 01:31:56]} {[%emt 00:00:39]} 9. f4
{[%clk 01:26:29]} {[%emt 00:01:46]} b5 {[%clk 01:31:44]} {[%emt 00:00:42]} 10.
a3 {[%clk 01:25:52]} {[%emt 00:01:08]} Bb7 {[%emt 00:00:12]} 11. Bf3 {[%clk
01:25:39]} {[%emt 00:00:41]} Nbd7 {[%clk 01:32:10]} {[%emt 00:00:24]} 12. O-O
{[%clk 01:22:17]} {[%emt 00:03:52]} Rd8 {[%clk 01:30:47]} {[%emt 00:01:50]} 13.
Rae1 {[%clk 01:12:33]} {[%emt 00:10:16]} O-O {[%clk 01:26:27]} {[%emt
00:04:50]} 14. g4 {[%clk 01:03:40]} {[%emt 00:09:24]} h6 {[%clk 01:24:36]}
{[%emt 00:02:20]} 15. Qg2 {[%clk 01:02:12]} {[%emt 00:01:57]} Nh7 {[%clk
01:22:16]} {[%emt 00:02:49]} 16. f5 {[%clk 00:56:15]} {[%emt 00:06:29]} e5
{[%clk 01:21:15]} {[%emt 00:01:31]} 17. Nb3 {[%clk 00:53:14]} {[%emt 00:03:31]}
Ng5 {[%clk 01:19:44]} {[%emt 00:02:00]} 18. Nd2 {[%clk 00:46:50]} {[%emt
00:06:54]} Nb6 {[%clk 01:16:56]} {[%emt 00:03:18]} 19. Bxg5 {[%clk 00:39:16]}
{[%emt 00:08:04]} Bxg5 {[%clk 01:16:53]} {[%emt 00:00:32]} 20. Rd1 {[%clk
00:37:15]} {[%emt 00:02:33]} Bxd2 {[%clk 01:16:14]} {[%emt 00:01:09]} 21. Qxd2
{[%clk 00:36:36]} {[%emt 00:01:07]} Nc4 {[%clk 01:16:17]} {[%emt 00:00:28]} 22.
Qc1 {[%clk 00:36:35]} {[%emt 00:00:31]} Qc5+ {[%clk 01:13:44]} {[%emt
00:03:04]} 23. Rf2 {[%clk 00:35:50]} {[%emt 00:01:14]} Nxa3 {[%clk 01:13:03]}
{[%emt 00:01:10]} 24. f6 {[%clk 00:28:15]} {[%emt 00:08:07]} Nc4 {[%clk
01:03:36]} {[%emt 00:09:56]} 25. Rd3 {[%clk 00:24:04]} {[%emt 00:04:42]} Rfe8
{[%clk 00:57:18]} {[%emt 00:06:47]} 26. g5 {[%clk 00:18:06]} {[%emt 00:06:28]}
g6 {[%clk 00:53:39]} {[%emt 00:04:09]} 27. Bg4 {[%clk 00:11:38]} {[%emt
00:06:58]} Kh7 {[%clk 00:51:45]} {[%emt 00:02:23]} 28. Rh3 {[%clk 00:09:48]}
{[%emt 00:02:20]} Rh8 {[%clk 00:50:52]} {[%emt 00:01:22]} 29. Rxh6+ {[%clk
00:09:20]} {[%emt 00:01:00]} Kg8 {[%clk 00:51:19]} {[%emt 00:00:02]} 30. Rxh8+
{[%clk 00:09:18]} {[%emt 00:00:33]} Kxh8 {[%clk 00:51:48]} 31. Qf1 {[%clk
00:06:27]} {[%emt 00:03:21]} Qe3 {[%clk 00:51:39]} {[%emt 00:00:39]} 32. b3
{[%clk 00:01:36]} {[%emt 00:05:21]} Nd2 {[%clk 00:50:51]} {[%emt 00:01:18]} 33.
Qh3+ {[%clk 00:01:40]} {[%emt 00:00:27]} Qxh3 {[%clk 00:51:09]} {[%emt
00:00:11]} 34. Bxh3 {[%clk 00:02:08]} {[%emt 00:00:02]} Nxe4 {[%clk 00:51:16]}
{[%emt 00:00:23]} 35. Nxe4 {[%clk 00:02:29]} {[%emt 00:00:09]} Bxe4 {[%clk
00:51:43]} {[%emt 00:00:03]} 36. Bg2 {[%clk 00:02:24]} {[%emt 00:00:35]} Bxg2
{[%clk 00:51:54]} {[%emt 00:00:19]} 37. Kxg2 {[%clk 00:02:48]} {[%emt
00:00:06]} Kg8 {[%clk 00:51:53]} {[%emt 00:00:31]} 38. Kf3 {[%clk 00:02:07]}
{[%emt 00:01:11]} Kf8 {[%clk 00:52:22]} 39. c4 {[%clk 00:02:25]} {[%emt
00:00:14]} Ke8 {[%clk 00:52:03]} {[%emt 00:00:48]} 40. Ra2 {[%clk 00:02:10]}
{[%emt 00:00:45]} bxc4 {[%clk 00:52:07]} {[%emt 00:00:27]} 41. bxc4 {[%clk
00:02:35]} {[%emt 00:00:05]} Ra8 {[%clk 00:52:33]} {[%emt 00:00:03]} 42. Ke4
{[%clk 00:02:41]} {[%emt 00:00:24]} Kd7 {[%clk 00:52:49]} {[%emt 00:00:14]} 43.
Kd5 {[%clk 00:02:55]} {[%emt 00:00:16]} Rc8 {[%clk 00:52:25]} {[%emt 00:00:53]}
44. Rxa6 {[%clk 00:02:39]} {[%emt 00:00:46]} Rc5+ {[%clk 00:52:53]} {[%emt
00:00:02]} 45. Ke4 {[%clk 00:03:01]} {[%emt 00:00:08]} Rxc4+ {[%clk 00:53:07]}
{[%emt 00:00:15]} 46. Kd3 {[%clk 00:01:19]} {[%emt 00:02:12]} Rd4+ {[%clk
00:52:42]} {[%emt 00:00:54]} 47. Ke3 {[%clk 00:01:42]} {[%emt 00:00:08]} Rc4
{[%clk 00:51:40]} {[%emt 00:01:32]} 48. h4 {[%clk 00:01:18]} {[%emt 00:00:54]}
Rc7 {[%clk 00:50:45]} {[%emt 00:01:25]} 49. Ra8 {[%clk 00:01:25]} {[%emt
00:00:23]} Ke6 {[%clk 00:50:12]} {[%emt 00:01:03]} 50. Re8+ {[%clk 00:01:46]}
{[%emt 00:00:09]} Kf5 {[%clk 00:49:24]} {[%emt 00:01:19]} 51. Re7 {[%clk
00:01:39]} {[%emt 00:00:37]} Rc4 {[%clk 00:48:44]} {[%emt 00:01:09]} 52. Rxf7
{[%clk 00:01:54]} {[%emt 00:00:15]} Rxh4 {[%clk 00:48:46]} {[%emt 00:00:29]} 53.
Rd7 {[%clk 00:01:10]} {[%emt 00:01:13]} Kxg5 {[%clk 00:48:29]} {[%emt
00:00:46]} 54. Rxd6 {[%clk 00:01:33]} {[%emt 00:00:08]} Rf4 {[%clk 00:46:46]}
{[%emt 00:02:13]} 55. Rd5 {[%clk 00:01:25]} {[%emt 00:00:37]} Kxf6 {[%clk
00:46:53]} {[%emt 00:00:23]} 56. Rd8 {[%clk 00:01:48]} {[%emt 00:00:07]} Kg5
{[%clk 00:45:03]} {[%emt 00:02:20]} 57. Re8 {[%clk 00:02:08]} {[%emt 00:00:11]}
Kf5 {[%clk 00:44:00]} {[%emt 00:01:33]} 58. Rf8+ {[%clk 00:02:30]} {[%emt
00:00:08]} Kg4 {[%clk 00:44:16]} {[%emt 00:00:13]} 59. Re8 {[%clk 00:02:37]}
{[%emt 00:00:23]} e4 {[%clk 00:42:51]} {[%emt 00:01:55]} 60. Rh8 {[%clk
00:01:23]} {[%emt 00:01:44]} g5 {[%clk 00:42:39]} {[%emt 00:00:42]} 61. Rh1
{[%clk 00:01:23]} {[%emt 00:00:27]} Kf5 {[%clk 00:41:40]} {[%emt 00:01:32]} 62.
Rh8 {[%clk 00:01:00]} {[%emt 00:00:53]} Rf3+ {[%clk 00:41:24]} {[%emt
00:00:46]} 63. Ke2 {[%clk 00:01:23]} {[%emt 00:00:07]} Kf4 {[%clk 00:41:11]}
{[%emt 00:00:40]} 64. Re8 {[%clk 00:01:22]} {[%emt 00:00:33]} g4 {[%clk
00:41:05]} {[%emt 00:00:37]} 65. Re7 {[%clk 00:01:08]} {[%emt 00:00:44]} e3
{[%clk 00:40:59]} {[%emt 00:00:36]} 66. Rg7 {[%clk 00:01:13]} {[%emt 00:00:25]}
Rf2+ {[%clk 00:40:48]} {[%emt 00:00:40]} 67. Ke1 {[%clk 00:01:39]} {[%emt
00:00:05]} Kf3 {[%clk 00:40:50]} {[%emt 00:00:28]} 68. Rf7+ {[%clk 00:01:42]}
{[%emt 00:00:26]} Kg2 {[%clk 00:41:05]} {[%emt 00:00:14]} 69. Re7 {[%clk
00:01:41]} {[%emt 00:00:33]} e2 {[%clk 00:41:09]} {[%emt 00:00:25]} 70. Rg7
{[%clk 00:01:56]} {[%emt 00:00:14]} g3 {[%clk 00:41:15]} {[%emt 00:00:25]} 71.
Rh7 {[%clk 00:02:20]} {[%emt 00:00:06]} Kg1 {[%clk 00:39:40]} {[%emt 00:02:02]}
72. Rh5 {[%clk 00:02:17]} {[%emt 00:00:36]} Rh2 {[%clk 00:39:39]} {[%emt
00:00:30]} 73. Rf5 {[%clk 00:02:40]} {[%emt 00:00:09]} Kh1 {[%clk 00:39:31]}
{[%emt 00:00:38]} 0-1